[Event "Finnish Senior Championship 2022"]
[Site "Helsinki"]
[Date "2022.04.20"]
[Round "6.5"]
[White "Raitanen, Markku"]
[Black "Smeds, Tom"]
[Result "1/2-1/2"]
[ECO "B06"]
[WhiteElo "1813"]
[BlackElo "1863"]
[Annotator "NA RC COMBH"]
[PlyCount "76"]
[EventDate "2022.04.15"]
[EventType "swiss"]
[EventCountry "FIN"]
[SourceTitle "playchess.com"]
[Source "ChessBase"]
[SourceQuality "1"]
[TimeControl "40/5400+30:1800+30"]

1. e4 {[%emt 0:00:06]} g6 {[%emt 0:00:11]} 2. d4 {[%emt 0:00:12]} Bg7 {[%emt 0:00:13]} 3. Nc3 {[%emt 0:00:22]} d6 {[%emt 0:00:33]} 4. f4 {[%emt 0:01:03]} e6 {[%emt 0:00:23]} 5. Be3 {[%emt 0:01:30]} Ne7 {[%emt 0:00:33]} 6. Be2 {[%emt 0:05:22]} a6 {[%emt 0:00:13]} 7. Bf3 {[%emt 0:02:13]} Nd7 {[%emt 0:02:33]} 8. Nge2 {[%emt 0:02:30]} O-O {[%emt 0:03:52]} 9. h4 {[%emt 0:02:17]} b5 {[%emt 0:05:43]} 10. Ng3 {[%emt 0:01:09]} Bb7 {[%emt 0:01:37]} 11. Qd2 {[%emt 0:02:19]} (11. h5 $11 {should be considered.}) 11... Nb6 {[%emt 0:01:01]} 12. b3 {[%emt 0:02:23]} b4 {[%emt 0:01:45]} 13. Nce2 {[%emt 0:00:48]} c5 {[%emt 0:00:13]} 14. Rd1 {[%emt 0:02:25]} Qc7 {[%emt 0:05:21]} 15. h5 {[%emt 0:12:15]} f5 {[%emt 0:05:15]} 16. hxg6 {[%emt 0:04:24]} hxg6 {[%emt 0:00:11]} 17. O-O $2 {[%emt 0:04:54]} (17. dxc5 $18 dxc5 18. Qd6 Qxd6 19. Rxd6) 17... Rad8 {[%emt 0:03:50]} 18. Qe1 {[%emt 0:02:00]} fxe4 {[%emt 0:10:00]} 19. Nxe4 {[%emt 0:07:43]} Nf5 {[%emt 0:00:41]} 20. Bf2 $11 {[%emt 0:02:22]} cxd4 {[%emt 0:07:35]} 21. Ng5 {[%emt 0:03:41]} Rde8 {[%emt 0:03:23]} 22. Bxb7 {[%emt 0:04:19]} Qxb7 {[%emt 0:00:33]} 23. Nxd4 {[%emt 0:05:21]} Nxd4 {[%emt 0:03:04]} 24. Bxd4 {[%emt 0:00:54]} Bxd4+ {[%emt 0:10:26]} 25. Rxd4 {[%emt 0:00:30]} Nd5 {[%emt 0:00:56]} 26. Re4 {[%emt 0:03:37]} e5 {[%emt 0:02:51]} 27. fxe5 {[%emt 0:08:05]} Rxf1+ {[%emt 0:03:12]} 28. Kxf1 {[%emt 0:02:07]} dxe5 {[%emt 0:07:19]} 29. Rxe5 {[%emt 0:04:32]} Rf8+ {[%emt 0:02:10]} 30. Nf3 {[%emt 0:03:04]} Nf4 {[%emt 0:01:33]} 31. Qe4 {[%emt 0:03:53]} Qxe4 {[%emt 0:02:02]} 32. Rxe4 {[%emt 0:00:22]} a5 {[%emt 0:01:31]} 33. Re5 {[%emt 0:04:27]} Rc8 {[%emt 0:04:29]} 34. g3 {[%emt 0:00:37]} Rc3 {[%emt 0:00:34]} 35. Kf2 {[%emt 0:01:30]} Rxc2+ {[%emt 0:00:17]} 36. Ke3 {[%emt 0:01:15]} Ng2+ {[%emt 0:00:24]} 37. Kd4 {[%emt 0:01:41]} Rxa2 {[%emt 0:00:11]} 38. Re7 {[%emt 0:00:00]} a4 {[%emt 0:00:00]} 1/2-1/2

[Event "Finnish Senior Championship 2022"]
[Site "Helsinki"]
[Date "2022.04.21"]
[Round "7.1"]
[White "Binham, Timothy F."]
[Black "Koskinen, Hannu E."]
[Result "1-0"]
[ECO "B09"]
[WhiteElo "2275"]
[BlackElo "1746"]
[Annotator "TA"]
[PlyCount "38"]
[EventDate "2022.04.15"]
[EventType "swiss"]
[EventCountry "FIN"]
[SourceTitle "playchess.com"]
[Source "ChessBase"]
[SourceQuality "1"]
[TimeControl "40/5400+30:1800+30"]

{[%evp 12,38,51,44,49,45,42,64,22,31,60,58,132,123,134,115,117,128,270,108,216,88,143,152,472,427,575,567,1885]} 1. e4 {[%emt 0:00:06]} d6 {[%emt 0:00:05]} 2. d4 {[%emt 0:00:06]} Nf6 {[%emt 0:00:04]} 3. Nc3 {[%emt 0:00:05]} g6 {[%emt 0:00:04]} 4. f4 {[%emt 0:00:24]} Bg7 {[%emt 0:00:05]} 5. Nf3 {[%emt 0:00:02]} O-O {[%emt 0:00:05]} 6. Bd3 {[%emt 0:01:21]} Nc6 {[%emt 0:00:35]} 7. O-O {[%emt 0:01:54]} e5 {[%emt 0:04:08] B09: Pirc Defence: Austrian Attack.} 8. d5 {[%emt 0:03:49]} Nb4 {[%emt 0:06:18]} 9. fxe5 {[%emt 0:05:07]} dxe5 {[%emt 0:00:10] White is slightly better.} 10. Bc4 {[%emt 0:10:36]} Qe7 {[%emt 0:15:49] [#] ...Qc5+ is the strong threat.} 11. Kh1 {[%emt 0:02:09] [#]} b6 $146 {[%emt 0:06:00]} (11... h6 $14) ({Predecessor:} 11... Ne8 12. Bg5 Bf6 13. Be3 Nd6 14. Be2 b6 15. a3 Na6 16. b4 Nb8 17. Bd3 a5 {1-0 (53) Yu,R (2511)-Liu,C (2262) Beijing 2012}) 12. Qe2 {[%emt 0:07:18] And now a3 would win.} a5 {[%emt 0:01:50]} 13. a3 $36 {[%emt 0:00:25][%mdl 2048] Keeping Black busy.} Na6 {[%emt 0:00:25]} 14. Bg5 {[%emt 0:02:37][%cal Od5d6]} Nc5 {[%emt 0:04:07] [#]} (14... Bb7 $16 {keeps fighting.} 15. Nd2 h6) 15. Rad1 {[%emt 0:00:39]} (15. d6 $1 $18 {[%cal Rd6e7] is the precise move to win.} Qxd6 16. Rad1) 15... Ba6 {[%emt 0:03:48]} (15... Bb7 $16 {was necessary.}) 16. d6 {[%emt 0:16:55]} (16. Nd2 $18 {is more deadly.}) 16... cxd6 {[%emt 0:01:11]} (16... Qe6 $142 17. Nd2 (17. Bxe6 Bxe2 18. Nxe2 fxe6 $14) 17... c6) 17. Nd5 {[%emt 0:00:38] &Bianco is more active.} Qd8 {[%emt 0:00:20]} (17... Qe6 $16 {is tougher.}) 18. Bxa6 {[%emt 0:01:11]} Rxa6 {[%emt 0:06:06]} 19. Nd2 {[%emt 0:05:30]} Qe7 {[%emt 0:48:50] Weighted Error Value: White=0.31/Black=0.76} 1-0

[Event "Finnish Senior Championship 2022"]
[Site "Helsinki"]
[Date "2022.04.21"]
[Round "7.2"]
[White "Kivipelto, Kaj"]
[Black "Aakio, Seppo"]
[Result "1-0"]
[ECO "A03"]
[WhiteElo "2129"]
[BlackElo "2051"]
[Annotator "TA"]
[PlyCount "71"]
[EventDate "2022.04.15"]
[EventType "swiss"]
[EventCountry "FIN"]
[SourceTitle "playchess.com"]
[Source "ChessBase"]
[SourceQuality "1"]
[TimeControl "40/5400+30:1800+30"]

{[%evp 17,71,0,8,7,16,11,29,0,3,-6,31,10,37,11,50,26,37,50,170,139,342,354,610,368,379,357,644,567,652,623,741,752,740,741,629,514,1780,1781,1690,1512,1463,1027,1699,1655,1390,779,781,700,716,739,973,708,572,35,1449,1279]} 1. b3 {[%emt 0:01:20]} d5 {[%emt 0:04:38]} 2. Bb2 {[%emt 0:00:49]} c5 {[%emt 0:00:54]} 3. e3 {[%emt 0:03:26]} e6 {[%emt 0:02:31]} 4. f4 {[%emt 0:10:05]} Nc6 {[%emt 0:00:40]} 5. Bb5 {[%emt 0:03:56]} Bd7 {[%emt 0:00:20][%cal Bc8d7,Bd7c6,Bc6b7][%mdl 32]} 6. Nf3 {[%emt 0:01:13]} Nf6 {[%emt 0:01:23]} 7. O-O {[%emt 0:04:40]} Be7 {[%emt 0:03:28]} 8. Bxc6 {[%emt 0:07:10]} Bxc6 {[%emt 0:00:01]} 9. Ne5 {[%emt 0:00:21]} Rc8 {[%emt 0:30:28]} 10. d3 {[%emt 0:04:04] A03: Bird's Opening with 1...d5.} d4 {[%emt 0:01:09]} 11. e4 {[%emt 0:16:27] [#] Against Nd5} b5 $146 {[%emt 0:13:10]} ({Predecessor:} 11... O-O 12. Nd2 Nd7 13. Nxd7 Bxd7 14. Rf3 f6 15. Rh3 Qe8 16. Qe2 f5 17. e5 Bc6 {½-½ (62) Chaves,J (1990)-Gomez,E Dubai 1986}) 12. Nd2 {[%emt 0:09:10] White has an edge.} Bb7 {[%emt 0:00:22]} 13. Qe2 {[%emt 0:03:51]} Qb6 {[%emt 0:03:32]} 14. Ndf3 {[%emt 0:02:11]} h6 {[%emt 0:00:53]} 15. b4 {[%emt 0:08:31]} O-O {[%emt 0:10:32]} 16. bxc5 {[%emt 0:02:10]} Bxc5 {[%emt 0:00:13][%cal Ob7e4]} 17. Kh1 {[%emt 0:00:25]} Rfd8 {[%emt 0:00:52] [#] Black is now going downhill.} (17... Bc6 $14) 18. g4 $1 $18 {[%emt 0:00:42][%cal Bg2g4,Bg4g5][%mdl 32]} Bf8 $2 {[%emt 0:09:53]} (18... Bd6 $16) 19. g5 {[%emt 0:07:17]} Nd7 {[%emt 0:05:35]} (19... hxg5 20. fxg5 Nd7) 20. Bxd4 {[%emt 0:00:46]} Qc7 {[%emt 0:01:51]} 21. Rf2 {[%emt 0:05:15][%cal Bf1f2,Bf2g2,Bg2g7,Bg7f7][%mdl 32] aiming for gxh6.} Bc5 $2 {[%emt 0:00:40]} (21... g6 22. Ng4 h5) 22. Bxc5 {[%emt 0:00:30]} Qxc5 {[%emt 0:02:52]} 23. gxh6 {[%emt 0:00:18] [#] Threatens to win with Rg1.} gxh6 {[%emt 0:01:11]} 24. Rg2+ {[%emt 0:01:39]} Kf8 {[%emt 0:00:07]} 25. Rag1 {[%emt 0:00:36] Strongly threatening Rg7.} Ke7 {[%emt 0:00:30]} 26. Rg7 {[%emt 0:00:31]} Qxc2 {[%emt 0:01:47]} (26... Rf8 $142 27. Ng6+ Kd6 28. Nxf8 Rxf8) 27. Rxf7+ {[%emt 0:00:28]} Kd6 {[%emt 0:00:12]} 28. Qe3 {[%emt 0:00:42]} Qc5 {[%emt 0:00:54]} 29. Qe1 {[%emt 0:00:31]} Bc6 {[%emt 0:00:57]} 30. d4 {[%emt 0:02:12]} Qa3 {[%emt 0:02:01]} 31. Qh4 {[%emt 0:00:38] Qe7+ is the strong threat.} Kc7 {[%emt 0:00:51]} 32. d5 {[%emt 0:01:53]} exd5 {[%emt 0:00:24]} 33. Nd4 {[%emt 0:00:09]} Kb6 {[%emt 0:00:54]} 34. Qf2 {[%emt 0:00:40]} Qc5 {[%emt 0:00:36]} 35. Nd3 $2 {[%emt 0:00:48] Pair of Knights!} ({Only move:} 35. Nexc6 $18 Rxc6 36. e5) 35... Qc3 $2 {[%emt 0:00:49][%mdl 8192]} (35... dxe4 $14 36. Nxc5 e3+ 37. Nxc6 exf2 38. Nxd8 (38. Nxd7+ Rxd7 39. Rxd7 fxg1=Q+ 40. Kxg1 Rxc6 $11) 38... fxg1=Q+ 39. Kxg1 Nxc5 40. Rf6+ Ka5 41. Nc6+ Ka4) 36. Ne2+ {[%emt 0:03:06] Weighted Error Value: White=0.73/Black=0.83} 1-0

[Event "Finnish Senior Championship 2022"]
[Site "Helsinki"]
[Date "2022.04.21"]
[Round "7.3"]
[White "Patola, Eero"]
[Black "Hietala, Pekka"]
[Result "0-1"]
[ECO "A25"]
[WhiteElo "1809"]
[BlackElo "1925"]
[Annotator "TA"]
[PlyCount "118"]
[EventDate "2022.04.15"]
[EventType "swiss"]
[EventCountry "FIN"]
[SourceTitle "playchess.com"]
[Source "ChessBase"]
[SourceQuality "1"]
[TimeControl "40/5400+30:1800+30"]

{[%evp 9,118,12,31,-40,-40,-50,-54,-91,-45,-96,-49,-47,-23,-18,-30,-32,-25,-44,-45,-49,-44,-80,-81,-100,-97,-99,-84,-119,-43,-35,-62,-73,-30,-30,-35,-70,-58,-71,-64,-114,-117,-120,-95,-111,-90,-158,-147,-184,-172,-191,-70,-156,-163,-170,-168,-244,-184,-294,-114,-212,-168,-169,-169,-169,-169,-169,-162,-165,-123,-202,-202,-216,-165,-165,-165,-165,-165,-222,-202,-327,-327,-324,-326,-319,-310,-312,-291,-406,-406,-406,-372,-430,-397,-1623,-535,-1038,-701,-736,-673,-7688,-581,-29977,-29978,-29977,-29978,-29979,-29980,-29986,-29987,-29987,-29988]} 1. c4 {[%emt 0:10:04]} e5 {[%emt 0:00:24]} 2. Nc3 {[%emt 0:00:10]} d6 {[%emt 0:00:45]} 3. g3 {[%emt 0:00:31]} f5 {[%emt 0:00:33]} 4. Bg2 {[%emt 0:00:21]} Nf6 {[%emt 0:01:20]} 5. d3 {[%emt 0:01:46]} Nc6 {[%emt 0:03:21] [#]} 6. b4 $146 {[%emt 0:05:17] A25: English Opening vs King's Indian with ...Nc6 but without early d3.} (6. e3 $14) ({Predecessor:} 6. e4 g6 7. Nge2 Bg7 8. O-O O-O 9. h3 Bd7 10. Be3 a6 11. Rc1 Rb8 12. Nd5 Nxd5 13. cxd5 Ne7 14. Qb3 b6 15. Rc2 h6 16. f4 Kh7 17. Kh2 {1-0 (74) Le,Q (2714)-Alekseenko,K (2638) St Petersburg 2018}) 6... Nxb4 $15 {[%emt 0:02:13]} 7. Qa4+ {[%emt 0:04:04]} Nc6 $1 {[%emt 0:00:12]} 8. Bg5 {[%emt 0:09:20] Black is slightly better.} Bd7 {[%emt 0:02:28]} (8... Be7 $1 $17) 9. Nd5 {[%emt 0:06:34]} (9. Rb1 $15) 9... Nd4 {[%emt 0:03:13]} (9... Ne7 $17 10. Qb3 Nexd5 11. cxd5 Rb8) 10. Qd1 {[%emt 0:00:37]} c6 {[%emt 0:00:30]} 11. Nxf6+ {[%emt 0:00:38]} gxf6 {[%emt 0:00:08]} 12. Bd2 {[%emt 0:00:50]} h5 $36 {[%emt 0:04:23][%mdl 2048] Black has good play.} 13. e3 {[%emt 0:02:30]} Ne6 {[%emt 0:00:59][%cal Bd4e6,Be6c5,Bc5d3][%mdl 32]} 14. Nf3 {[%emt 0:01:44]} Nc5 $1 {[%emt 0:03:30]} 15. d4 {[%emt 0:05:54]} Nd3+ {[%emt 0:01:27]} 16. Ke2 {[%emt 0:00:22]} e4 {[%emt 0:00:23] Hoping for ...d5.} 17. Ne1 {[%emt 0:01:29]} Nxe1 {[%emt 0:03:14] 0x0.00138d2c0565dp-1022s more active pieces.} 18. Rxe1 {[%emt 0:00:28]} d5 {[%emt 0:01:05]} (18... Be6 $17 {[%cal Re6c4]} 19. Qa4 d5) 19. Qb3 {[%emt 0:03:13][%csl LRb7,LRd5]} Bc8 {[%emt 0:05:54]} 20. h4 {[%emt 0:01:32]} dxc4 {[%emt 0:02:02]} (20... b6 $5 {[%cal Rc8a6]} 21. cxd5 Ba6+ 22. Kd1 Qxd5 $15) 21. Qxc4 {[%emt 0:00:58]} Qd6 {[%emt 0:00:47]} 22. Reb1 {[%emt 0:01:40]} b5 {[%emt 0:02:38]} 23. Qc2 {[%emt 0:01:44] [#]} a5 $1 {[%emt 0:00:33]} 24. Ke1 {[%emt 0:01:42]} ({White should try} 24. Rc1 $15) 24... Be6 $17 {[%emt 0:03:09]} 25. Bf1 {[%emt 0:00:36]} Be7 {[%emt 0:01:48]} 26. Be2 {[%emt 0:00:36]} Kf7 {[%emt 0:05:33]} 27. Rc1 {[%emt 0:00:23]} (27. a3 $142) 27... Bd5 {[%emt 0:01:00]} 28. Qd1 {[%emt 0:02:34]} Kg6 {[%emt 0:00:46]} 29. Kf1 {[%emt 0:00:53]} Bf7 {[%emt 0:01:41]} (29... b4 $19 {White must now prevent ...Qe6.} 30. Qc2 Qe6) 30. Rc2 {[%emt 0:02:32]} ({White should play} 30. Kg1 $15) 30... b4 {[%emt 0:06:48]} 31. Rac1 {[%emt 0:02:56]} Bd5 {[%emt 0:00:57]} 32. Rb1 {[%emt 0:04:31]} (32. Rb2 $142) 32... Qd7 {[%emt 0:04:06][%cal Of5f4]} 33. Kg2 {[%emt 0:02:11]} (33. Bc4 $142) 33... Qa7 $2 {[%emt 0:02:17]} (33... f4 $19 34. gxf4 Rag8) 34. Qf1 {[%emt 0:03:24]} (34. Bc4 $17) 34... Rab8 {[%emt 0:03:17][%cal Of5f4]} 35. Bc4 {[%emt 0:00:50]} Rb6 {[%emt 0:05:09]} 36. Bxd5 {[%emt 0:04:46]} cxd5 {[%emt 0:00:14]} 37. Qc1 {[%emt 0:00:46]} Rhb8 {[%emt 0:01:24]} 38. Rc8 {[%emt 0:09:15]} a4 {[%emt 0:01:38][%cal Ba5a4,Ba4b3][%mdl 32]} 39. Rxb8 {[%emt 0:01:56]} (39. Rc7 $17 R8b7 40. Rc8) 39... Qxb8 $19 {[%emt 0:00:27]} 40. Qc2 {[%emt 0:03:05]} b3 {[%emt 0:01:29]} 41. axb3 {[%emt 0:30:17]} axb3 {[%emt 0:30:19]} ({Worse is} 41... Rxb3 42. Ra1 $11) 42. Qb2 {[%emt 0:02:35]} Bd6 {[%emt 0:07:40]} 43. Bc3 {[%emt 0:03:40]} (43. Qa1 {was worth a try.}) 43... Qc8 {[%emt 0:02:47]} 44. Ba5 {[%emt 0:00:00]} (44. Qa1 {is the only way for White.}) 44... Rb7 {[%emt 0:00:00]} 45. Rc1 {[%emt 0:00:00]} Qd7 {[%emt 0:00:00]} 46. Bc3 {[%emt 0:00:00]} Qb5 {[%emt 0:00:00] Against Qe2} 47. Ra1 {[%emt 0:00:00]} Qd3 {[%emt 0:00:00]} 48. Rc1 {[%emt 0:00:00]} f4 {[%emt 0:00:00]} 49. gxf4 {[%emt 0:00:00]} Kf5 {[%emt 0:00:00][%cal Od6a3]} 50. Re1 {[%emt 0:00:00]} Qc2 {[%emt 0:00:00]} 51. Re2 $2 {[%emt 0:00:00]} (51. Rc1 Qxb2 52. Bxb2) 51... Qxb2 {[%emt 0:00:00]} (51... Qd1 $142 {( -> ...Rg7+)} 52. Re1 Qf3+ 53. Kf1 {[#]} Bxf4 $1 {[%mdl 512]}) 52. Bxb2 {[%emt 0:00:00][%mdl 4096] Endgame KRB-KRB} Kg4 {[%emt 0:00:33] aiming for ...Bb4.} 53. Re1 {[%emt 0:00:00]} Rc7 {[%emt 0:00:55]} 54. Rc1 {[%emt 0:00:00]} Rc2 {[%emt 0:01:22]} (54... Rxc1 $142 55. Bxc1 Be7) 55. Rxc2 {[%emt 0:00:00]} bxc2 {[%emt 0:00:24] Black mates.} 56. Bc1 {[%emt 0:01:01]} Bb4 {[%emt 0:00:53]} 57. f5 {[%emt 0:02:36]} Bc3 {[%emt 0:01:08]} 58. f3+ {[%emt 0:00:39]} exf3+ {[%emt 0:00:17]} 59. Kf2 {[%emt 0:00:05]} Bb4 {[%emt 0:00:22] Weighted Error Value: White=0.73/Black=0.44} 0-1

[Event "Finnish Senior Championship 2022"]
[Site "Helsinki"]
[Date "2022.04.21"]
[Round "7.6"]
[White "Kukkonen, Martti"]
[Black "Lyly, Seppo"]
[Result "0-1"]
[ECO "A35"]
[WhiteElo "1462"]
[BlackElo "1908"]
[Annotator "TA"]
[PlyCount "62"]
[EventDate "2022.04.15"]
[EventType "swiss"]
[EventCountry "FIN"]
[SourceTitle "playchess.com"]
[Source "ChessBase"]
[SourceQuality "1"]
[TimeControl "40/5400+30:1800+30"]

{[%evp 11,62,42,59,-27,-34,-47,8,-40,11,12,12,15,13,12,14,-45,-21,-18,-17,-16,-18,-126,-118,-240,-245,-411,-239,-370,-378,-782,-681,-749,-760,-999,-1002,-960,-850,-29995,-1679,-29990,-1667,-1632,-1625,-1620,-1607,-1483,-1199,-1166,-777,-1579,-1521,-1507,-1476]} 1. Nf3 {[%emt 0:00:43]} c5 {[%emt 0:00:10]} 2. c4 {[%emt 0:00:48]} Nc6 {[%emt 0:00:09]} 3. Nc3 {[%emt 0:00:39]} g6 {[%emt 0:00:14]} 4. e3 {[%emt 0:02:33]} Bg7 {[%emt 0:00:53]} 5. d4 {[%emt 0:00:56]} cxd4 {[%emt 0:00:31]} 6. exd4 {[%emt 0:00:07]} d6 {[%emt 0:01:27]} 7. a3 {[%emt 0:00:57] [#] A35: Symmetrical English: 2 Nc3 Nc6 3 Nf3.} (7. d5 $14 Ne5 8. Nxe5 Bxe5 9. Bd3) 7... Bg4 $146 {[%emt 0:03:55][%cal Oc6d4]} ({Predecessor:} 7... Nf6 8. d5 Nb8 9. h3 Nbd7 10. Be3 O-O 11. Qd2 b6 12. Bh6 Nc5 13. Bxg7 Kxg7 14. Be2 Nb3 {½-½ (31) Helbig,H-Boettner,J freechess.de 2017}) 8. Be3 {[%emt 0:04:21]} e5 {[%emt 0:03:25]} (8... Nh6 $15) 9. d5 {[%emt 0:00:36]} (9. Be2 $11) 9... Nce7 {[%emt 0:00:20]} (9... Nd4 $1 $15) 10. h3 {[%emt 0:00:32]} Bxf3 {[%emt 0:00:28]} 11. Qxf3 {[%emt 0:00:13]} f5 {[%emt 0:00:30][%cal Bf7f5,Bf5f4][%mdl 32]} 12. Qd1 {[%emt 0:02:35]} Nf6 {[%emt 0:02:43]} 13. Nb5 {[%emt 0:02:42]} ({Better is} 13. Bg5 $11) 13... a6 {[%emt 0:00:58]} 14. Nc3 {[%emt 0:00:28]} f4 {[%emt 0:00:39]} 15. Bd2 {[%emt 0:00:49]} O-O {[%emt 0:00:18]} 16. Qc2 {[%emt 0:00:27]} (16. Bd3 $11) 16... Nf5 $17 {[%emt 0:00:42][%cal Oe5e4]} 17. Ne2 {[%emt 0:03:21] This costs White the game.} (17. Be2 $17 {was called for.}) 17... Rc8 $19 {[%emt 0:01:31][%cal Ba8c8,Bc8c4,Bc4e4][%mdl 32] Threatens to win with ...b5.} 18. Qb3 {[%emt 0:01:09]} (18. Nc3) 18... Qd7 {[%emt 0:03:33]} (18... b5 $142 19. Nc3 Nd4) 19. Qb6 {[%emt 0:03:58]} (19. h4 $142) 19... Rxc4 {[%emt 0:08:24] Strongly threatening ...Ne4.} 20. Nxf4 $2 {[%emt 0:01:04]} (20. Nc3 Rd4 21. Be2) 20... Re4+ {[%emt 0:00:27]} 21. Ne2 {[%emt 0:01:43]} Nd4 {[%emt 0:03:13] ...Nc2+ is the strong threat.} 22. Rc1 {[%emt 0:01:15] Against Nc2+} Nxd5 {[%emt 0:01:16] Pair of Knights!} 23. Qa5 {[%emt 0:00:45]} Qf7 {[%emt 0:05:02][%cal Oe4e2] ( -> ...Rxe2+!)} 24. Rb1 {[%emt 0:06:11]} Qxf2+ {[%emt 0:02:21]} 25. Kd1 {[%emt 0:00:16]} Qxf1+ {[%emt 0:07:29]} (25... b5 $142 26. Nxd4 Rxd4 27. b3 Bh6 28. Bd3 Rxd3 29. Rb2 Ne3+ 30. Kc1 {[#]} Qf1+ $3 {[%mdl 512]} 31. Rxf1 Rxf1+ 32. Be1 Rd1#) 26. Rxf1 {[%emt 0:00:42] Black is clearly winning.} Rxf1+ {[%emt 0:00:08]} 27. Be1 {[%emt 0:00:29]} Ne3+ {[%emt 0:00:28]} 28. Kd2 {[%emt 0:02:02]} Nb3+ {[%emt 0:04:49]} 29. Kd3 {[%emt 0:00:30] [#]} Rd4+ $1 {[%emt 0:00:58][%mdl 512]} 30. Kxe3 {[%emt 0:00:42]} (30. Nxd4 Nxa5) 30... Bh6+ {[%emt 0:00:55]} 31. Nf4 {[%emt 0:00:51]} Nxa5 {[%emt 0:48:04][%mdl 64] Pin.  Weighted Error Value: White=1.35/Black=0.89} 0-1